Cogmind - Beta 13 @@@ ROGUE MODE // 2024.06.27 @ 23:58:46 Player: Sionnis Result: Destroyed by G-50 Soldier with Heavy Laser Performance ------------- Evolutions (4) 2000 Regions Visited (15) 3000 Robots Destroyed (140) 700 Value Destroyed (3694) 3694 Prototype IDs (33) 660 Alien Tech Used (0) 0 Bonus (681) 681 TOTAL SCORE: 10735 Bonus ------- High Alert Combat Kills 381 Met Data Miner 300 Cogmind --------- Core Integrity 0/850 Matter 300/300 Energy 100/100 System Corruption 1% Temperature Cool (18) Movement Core (50) Location -5/Proximity Caves Parts ------- > --- POWER (1) -------- (None) > --- PROPULSION (4) --- (None) > --- UTILITY (8) ------ Enhanced Optical Array Advanced Signal Interpreter Makeshift Hacking Suite Improved Hacking Suite Improved Hacking Suite > --- WEAPON (2) ------- (None) > --- INVENTORY (5) ---- Huge Storage Unit Transmission Jammer Advanced ECM Suite Scatter Rocket Array Makeshift Sword Peak State ------------ > --- POWER ------------ Backup Power VII > --- PROPULSION ------- Improved VTOL Module Cooled VTOL Module Cooled VTOL Module Cooled VTOL Module > --- UTILITY ---------- Medium Storage Unit Enhanced Optical Array Advanced Sensor Array Advanced Signal Interpreter Improved Hacking Suite Improved Hacking Suite Improved System Shield Advanced System Shield > --- WEAPON ----------- Mini Grenade Launcher Makeshift Sword > --- INVENTORY -------- Backup Power III Improved VTOL Module Huge Storage Unit Transmission Jammer Advanced ECM Suite Improved Propulsion Shielding Improved Utility Shielding Scatter Rocket Array CR-A16's Pointy Stick [Rating: 72] Favorites ----------- Power Backup Power VII Engine Ion Engine Power Core Backup Power VII Propulsion Light Treads Treads Light Treads Hover Unit Aerolev Unit Flight Unit Improved Flight Unit Utility Hacking Suite Device Improved Sensor Array Storage Medium Storage Unit Processor Improved Signal Interpreter Hackware Hacking Suite Protection Light Armor Plating Weapon Mini Grenade Launcher Energy Gun Improved Medium Laser Energy Cannon Advanced Beam Cannon Ballistic Gun Heavy Assault Rifle Launcher Mini Grenade Launcher Special Weapon Molecular Deconstructor Slashing Weapon Scythe Piercing Weapon CR-A16's Pointy Stick Build | -11 -10 -9 -8 -7 -7 -7 -7 -7 -7 -6 -6 -6 -6 -6 -5 ------- Run | Yrd Mat Mat Mat Fac Was Fac Low Low Zio Pro Fac Low Low Dat Pro Slots Evolved 8 | . . 2 2 2 . . . . . . 2 . . . . Power . | . . . . . . . . . . . . . . . . Propulsion 2 | . . 1 1 . . . . . . . . . . . . Utility 6 | . . 1 1 2 . . . . . . 2 . . . . Weapon . | . . . . . . . . . . . . . . . . Parts Attached 272 | 7 6 48 43 53 4 30 8 1 21 2 31 8 7 . 3 Power 37 | 1 . 8 6 11 1 3 . 1 . . 4 . 1 . 1 Engine 19 | 1 . 8 3 3 1 1 . . . . 1 . . . 1 Core 18 | . . . 3 8 . 2 . 1 . . 3 . 1 . . Reactor . | . . . . . . . . . . . . . . . . Propulsion 69 | 2 2 18 15 12 1 5 2 . 4 . 4 2 2 . . Treads 31 | 2 2 16 11 . . . . . . . . . . . . Leg . | . . . . . . . . . . . . . . . . Wheel . | . . . . . . . . . . . . . . . . Hover 1 | . . 1 . . . . . . . . . . . . . Flight 37 | . . 1 4 12 1 5 2 . 4 . 4 2 2 . . Utility 119 | 1 4 8 10 23 1 22 5 . 15 . 21 6 2 . 1 Device 45 | . 1 1 4 11 . 13 2 . 6 . 3 3 1 . . Storage 6 | 1 2 . 2 . . 1 . . . . . . . . . Processor 16 | . . 3 1 1 1 1 . . 4 . 5 . . . . Hackware 13 | . . . 2 3 . 1 . . 1 . 5 . . . 1 Protection 39 | . 1 4 1 8 . 6 3 . 4 . 8 3 1 . . Artifact . | . . . . . . . . . . . . . . . . Weapon 47 | 3 . 14 12 7 1 . 1 . 2 2 2 . 2 . 1 Energy Gun 12 | 2 . 6 4 . . . . . . . . . . . . Energy Cannon 6 | . . 4 2 . . . . . . . . . . . . Ballistic Gun 8 | 1 . 4 3 . . . . . . . . . . . . Ballistic Cannon . | . . . . . . . . . . . . . . . . Launcher 10 | . . . 2 4 1 . . . . . 2 . . . 1 Special Weapon 1 | . . . . . . . . . . 1 . . . . . Impact Weapon . | . . . . . . . . . . . . . . . . Slashing Weapon 8 | . . . 1 3 . . 1 . 1 1 . . 1 . . Piercing Weapon 2 | . . . . . . . . . 1 . . . 1 . . Special Melee Weapon . | . . . . . . . . . . . . . . . . Unidentified Prototypes 19 | . . 7 . 2 . 1 . . 6 1 2 . . . . Parts Lost 46 | . . 11 9 6 2 1 . 2 . . 1 . 4 2 8 Power 10 | . . 2 1 2 1 1 . 1 . . . . . 1 1 Propulsion 15 | . . 3 3 2 1 . . . . . . . 2 1 3 Utility 11 | . . 3 2 1 . . . . . . 1 . 1 . 3 Weapon 10 | . . 3 3 1 . . . 1 . . . . 1 . 1 Highest Loss Streak 8 | . . 3 6 2 2 1 . 2 . . 1 . 4 2 8 To Critical Strikes . | . . . . . . . . . . . . . . . . Average Slot Usage (%) 93 | . 98 93 91 94 100 99 100 95 90 92 93 96 87 91 64 Engine 5 | . 14 10 5 1 7 2 . . . . . . . . 4 Core 3 | . . . 3 4 . 4 7 6 7 7 6 6 4 5 . Treads 14 | . 28 31 27 . . . . . . . . . . . . Flight 14 | . . . 1 29 30 29 30 30 30 30 26 26 24 25 13 Device 4 | . 3 1 3 6 7 5 8 7 6 7 5 6 4 6 4 Storage 8 | . 14 11 9 7 7 7 7 7 7 7 6 6 6 6 4 Processor 8 | . . 8 9 7 15 10 7 7 7 7 15 13 13 13 13 Hackware 11 | . . . 9 20 15 19 16 15 16 23 20 20 20 20 19 Protection 5 | . 9 8 3 2 . 1 4 7 4 . 2 6 6 6 3 Energy Gun 3 | . 14 7 4 . . . . . . . . . . . . Energy Cannon 2 | . . 8 5 . . . . . . . . . . . . Ballistic Gun 3 | . 14 6 6 . . . . . . . . . . . . Launcher 1 | . . . . 4 7 7 7 3 . . 1 3 . . . Slashing Weapon 3 | . . . . 6 7 7 7 7 6 6 6 6 4 6 . Naked Turns . | . . . . . . . . . . . . . . . . Heaviest Build 42 | 13 31 40 42 21 16 19 20 20 21 17 20 21 19 19 15 Greatest Support 85 | 40 40 66 85 21 21 23 21 21 21 23 21 20 21 21 15 Greatest Overweight (x) 10 | . . 10 1 4 . . . . . . . 1 1 1 3 Average Overweight (x) . | . . . . . . . . . . . . . . . . Largest Inventory Capacity 15 | 8 15 15 15 10 10 10 10 10 10 10 10 10 10 10 10 Average Capacity 12 | 6 11 15 14 10 10 10 10 10 10 10 10 10 10 10 8 Most Carried 15 | 2 11 15 15 10 10 10 10 9 10 10 10 10 10 7 7 Average Carried 11 | 1 8 14 14 9 9 9 9 8 9 10 9 9 8 7 6 Final Capacity 15 | 8 15 15 10 10 10 10 10 10 10 10 10 10 10 10 5 Final Carried 15 | 2 11 15 9 10 8 10 9 8 10 10 8 10 7 7 5 Class Distribution -------------------- 31% | Hacker-Sprinter 26% | Scavenger-Mutant 22% | Mutant 18% | Hacker-Scout Dominant Class ---------------- Mutant | -10/Materials Scavenger-Mutant | -9/Materials Scavenger-Mutant | -8/Materials Hacker-Sprinter | -7/Factory Hacker-Scout | -7/Waste Hacker-Sprinter | -7/Factory Hacker-Sprinter | -7/Lower Caves Hacker-Sprinter | -7/Lower Caves Hacker-Sprinter | -7/Zion Hacker-Sprinter | -6/Proximity Caves Hacker-Scout | -6/Factory Hacker-Scout | -6/Lower Caves Hacker-Scout | -6/Lower Caves Hacker-Scout | -6/Data Miner Hacker-Scout | -5/Proximity Caves Resources | -11 -10 -9 -8 -7 -7 -7 -7 -7 -7 -6 -6 -6 -6 -6 -5 ----------- Run | Yrd Mat Mat Mat Fac Was Fac Low Low Zio Pro Fac Low Low Dat Pro Matter Collected 3485 | 195 154 684 632 473 . 230 158 156 57 201 93 241 176 . 35 Remotely . | . . . . . . . . . . . . . . . . Salvage Created 6076 | . 302 2396 1980 631 . 273 48 49 . 187 93 80 . . 37 Parts 336 | . 23 139 95 42 . 16 2 2 . . 8 6 . . 3 Haulers Intercepted 15 | . 2 6 5 1 . 1 . . . . . . . . . Recyclers Shooed 11 | . 1 5 3 . . 1 . . . . 1 . . . . Parts Field Recycled . | . . . . . . . . . . . . . . . . Retrieved Matter . | . . . . . . . . . . . . . . . . Parts Self-Destructed 6 | . . . . . . . 2 . . . . 2 . . 2 Prevented 6 | . . . . . . . . . . . . 6 . . . Kills | -11 -10 -9 -8 -7 -7 -7 -7 -7 -7 -6 -6 -6 -6 -6 -5 ------- Run | Yrd Mat Mat Mat Fac Was Fac Low Low Zio Pro Fac Low Low Dat Pro Combat Hostiles Destroyed 86 | . 5 41 25 10 . . . . . . 1 . . . 4 Melee 1 | . . . . . . . . . . . 1 . . . . Guns 34 | . 5 21 8 . . . . . . . . . . . . Cannons 33 | . . 19 14 . . . . . . . . . . . . AOE 16 | . . . 2 10 . . . . . . . . . . 4 Classes Destroyed 15 | . 4 8 . . . . 1 1 . . 1 . . . . Worker 5 | . . 3 1 1 . . . . . . . . . . . Builder 3 | . . 1 . 1 . . . . . . 1 . . . . Hauler 15 | . 2 6 5 1 . 1 . . . . . . . . . Recycler 13 | . . 2 6 3 . 2 . . . . . . . . . Minesweeper 2 | . . . . . . . 1 . . . . 1 . . . Mechanic 4 | . 1 . 1 1 . 1 . . . . . . . . . Operator 6 | . . 4 . 2 . . . . . . . . . . . Watcher 11 | . . 2 3 4 . 1 . . . . 1 . . . . Swarmer 17 | . 2 4 3 4 . . . . . . . . . . 4 Grunt 54 | . 3 26 19 6 . . . . . . . . . . . Brawler 1 | . . 1 . . . . . . . . . . . . . Duelist 2 | . . 2 . . . . . . . . . . . . . Sentry 11 | . . 8 3 . . . . . . . . . . . . Programmer 1 | . . . . . . . . . . . 1 . . . . Decomposer 1 | . . . . . . . 1 . . . . . . . . Packrat 3 | . . . . . . . . . . 3 . . . . . Samaritan 2 | . . . . . . . . 1 . . . 1 . . . Best Kill Streak 9 | . 3 6 9 6 . 3 1 . . . 1 1 . . 4 Combat Bots Only 6 | . 2 5 6 6 . . . . . . 1 . . . 4 Max Kills in Single Turn 4 | . 2 2 2 4 . 1 1 1 . 1 1 1 . . 2 Gunslinging 1 | . 1 1 . . . . . . . . . . . . . Exploded 4 | . . . 1 4 . . . . . . . . . . 2 Melee 1 | . . . . . . . . . . . 1 . . . . Uniques/NPCs Destroyed . | . . . . . . . . . . . . . . . . Combat | -11 -10 -9 -8 -7 -7 -7 -7 -7 -7 -6 -6 -6 -6 -6 -5 -------- Run | Yrd Mat Mat Mat Fac Was Fac Low Low Zio Pro Fac Low Low Dat Pro Hostile Shots Fired 840 | . 18 229 156 216 1 86 . 1 . 12 16 1 48 6 50 Missed 295 | . 4 55 29 114 . 50 . . . 6 9 1 11 3 13 Damage Taken 8360 | . 143 2389 2014 1301 112 256 . 47 . 121 203 . 919 141 714 Core 2034 | . 28 377 305 318 26 65 . 16 . 47 20 . 399 42 391 Absorbed by Shields 26 | . . . . . . 26 . . . . . . . . . Redirected to Shielding 372 | . . . . 84 . 34 . . . . 37 . 207 . 10 Regen/Repaired (Parts) 593 | . 1 . . 296 . 56 . . 104 . 136 . . . . Core Remaining (%) 53 | 100 88 5 44 . . . . . . 32 . . . . . Volleys Fired 304 | . 20 173 98 9 . . . . . . . . . . 4 Largest 2 | . 2 2 2 1 . . . . . . . . . . 1 Hottest 136 | . 70 136 105 30 . . . . . . . . . . 30 Shots Fired 568 | . 40 335 177 9 1 1 . 1 . . . . . . 4 Gun 396 | . 40 244 112 . . . . . . . . . . . . Cannon 153 | . . 91 62 . . . . . . . . . . . . Launcher 19 | . . . 3 9 1 1 . 1 . . . . . . 4 Special . | . . . . . . . . . . . . . . . . Kinetic 185 | . 20 101 64 . . . . . . . . . . . . Thermal 342 | . 20 234 88 . . . . . . . . . . . . Explosive 19 | . . . 3 9 1 1 . 1 . . . . . . 4 Electromagnetic 22 | . . . 22 . . . . . . . . . . . . Robot Hit Streak 15 | . 10 15 12 . . . . . . . . . . . 1 Robot Miss Streak 4 | . 2 4 4 . 1 . . . . . . . . . 1 Penetration Max . | . . . . . . . . . . . . . . . . Secondary Targets 6 | . 1 5 . . . . . . . . . . . . . Max Gunslinging Chain 1 | . 1 1 . . . . . . . . . . . . . Shots Hit Robots 442 | . 30 216 134 27 . 10 3 1 . 3 9 2 5 1 1 Core Hits 206 | . 15 70 73 29 . 5 2 1 . . 3 . 1 . 7 Critical Kills 2 | . . 1 1 . . . . . . . . . . . . Critical Parts Destroyed 1 | . . 1 . . . . . . . . . . . . . Critical Strikes 24 | . 1 14 2 3 . 3 . . . . . . 1 . . Burn 13 | . 1 12 . . . . . . . . . . . . . Meltdown 2 | . . 1 1 . . . . . . . . . . . . Destroy 1 | . . 1 . . . . . . . . . . . . . Sever 7 | . . . 1 3 . 3 . . . . . . . . . Impale 1 | . . . . . . . . . . . . . 1 . . Melee Attacks 224 | . . . 6 70 . 41 4 3 . 5 47 3 23 22 . Impact . | . . . . . . . . . . . . . . . . Slashing 213 | . . . 6 70 . 41 4 3 . 5 47 3 12 22 . Piercing 11 | . . . . . . . . . . . . . 11 . . Sneak Attacks 27 | . . . 1 9 . 5 2 1 . 3 2 2 1 1 . Combat Hostiles 1 | . . . . 1 . . . . . . . . . . . Follow-up Attacks . | . . . . . . . . . . . . . . . . Damage Inflicted 11640 | . 348 3681 2928 2517 . 516 170 78 . 231 458 169 232 90 222 Guns 3962 | . 337 2460 1165 . . . . . . . . . . . . Cannons 2494 | . . 1209 1285 . . . . . . . . . . . . Explosions 1834 | . . . 343 1269 . . . . . . . . . . 222 Melee 3327 | . . . 135 1248 . 516 170 78 . 231 458 169 232 90 . Ramming 23 | . 11 12 . . . . . . . . . . . . . Kinetic 1592 | . 125 898 569 . . . . . . . . . . . . Thermal 4712 | . 212 2771 1473 256 . . . . . . . . . . . Explosive 1553 | . . . 318 1013 . . . . . . . . . . 222 Electromagnetic 433 | . . . 433 . . . . . . . . . . . . Impact . | . . . . . . . . . . . . . . . . Slashing 3173 | . . . 135 1248 . 516 170 78 . 231 458 169 78 90 . Piercing 154 | . . . . . . . . . . . . . 154 . . Highest Corruption 16 | . . 2 2 6 16 16 6 3 3 . 1 1 1 1 1 Average Corruption 4 | . . 2 2 4 12 10 5 3 3 . 1 1 1 1 1 Corruption Purged 13 | . . . . . . 10 3 . . . . . . . . Corruption Blocked . | . . . . . . . . . . . . . . . . Effects 69 | . . 7 1 12 3 29 8 4 1 . . . 2 . 2 Message Errors 16 | . . 3 . 3 1 5 2 1 . . . . 1 . . Matter Fused 14 | . . 1 . 2 . 7 2 . . . . . 1 . 1 Heat Flow Errors 8 | . . . . 1 . 4 2 1 . . . . . . . Energy Discharges 8 | . . 2 . 1 . 2 1 1 1 . . . . . . Data Loss (minor) 11 | . . 1 1 3 . 4 1 . . . . . . . 1 Data Loss (major) 2 | . . . . 1 . 1 . . . . . . . . . Misfires 3 | . . . . . 1 1 . 1 . . . . . . . Alerts 3 | . . . . 1 . 2 . . . . . . . . . Misdirections 4 | . . . . . 1 3 . . . . . . . . . Overload Shots . | . . . . . . . . . . . . . . . . Overflow Damage 819 | . . 23 5 276 . 54 31 9 . 198 63 122 . . 38 Projectiles 28 | . . 23 5 . . . . . . . . . . . . Explosions 174 | . . . . 127 . . . 9 . . . . . . 38 Melee 617 | . . . . 149 . 54 31 . . 198 63 122 . . . Knockbacks . | . . . . . . . . . . . . . . . . Impact . | . . . . . . . . . . . . . . . . Kinetic . | . . . . . . . . . . . . . . . . Secondary . | . . . . . . . . . . . . . . . . Self-Inflicted Damage 346 | . . . 33 179 56 . . 31 . . . . . . 47 Shots 8 | . . . 1 4 1 . . 1 . . . . . . 1 Rammed 5 | . 1 4 . . . . . . . . . . . . . Targets Rammed 5 | . 1 4 . . . . . . . . . . . . . Kicked . | . . . . . . . . . . . . . . . . Crushed . | . . . . . . . . . . . . . . . . Highest Temperature 414 | . 78 414 381 278 10 305 257 103 . 17 . . . . . Average Temperature 100 | . 35 104 100 91 7 123 99 53 . 7 . . . . . Received Heat Transfer 2748 | . 54 915 1017 315 . 75 . 9 . 21 18 . 132 . 192 Effects 14 | . . 7 2 3 . 2 . . . . . . . . . Energy Bleed 6 | . . 3 1 . . 2 . . . . . . . . . Interference 6 | . . 2 1 3 . . . . . . . . . . . Damage (minor) 2 | . . 2 . . . . . . . . . . . . . Siege Activations . | . . . . . . . . . . . . . . . . Robots Corrupted 1 | . . . 1 . . . . . . . . . . . . Combat Hostiles . | . . . . . . . . . . . . . . . . Parts Fried 5 | . . . 5 . . . . . . . . . . . . Impact Corruptions . | . . . . . . . . . . . . . . . . Robots Melted 2 | . . 1 1 . . . . . . . . . . . . Combat Hostiles 2 | . . 1 1 . . . . . . . . . . . . Parts Melted 14 | . . 12 2 . . . . . . . . . . . . Heat Transferred 10153 | . 703 6660 2590 200 . . . . . . . . . . . Parts Sabotaged . | . . . . . . . . . . . . . . . . Parts Stolen . | . . . . . . . . . . . . . . . . Parts Stripped . | . . . . . . . . . . . . . . . . Power Chain Reactions 2 | . . . 2 . . . . . . . . . . . . Alert | -11 -10 -9 -8 -7 -7 -7 -7 -7 -7 -6 -6 -6 -6 -6 -5 ------- Run | Yrd Mat Mat Mat Fac Was Fac Low Low Zio Pro Fac Low Low Dat Pro Peak Influence 923 | . 125 700 612 923 358 624 . . . . 207 . . . . Initial 313 | . . 29 295 218 313 238 . . . . 18 . . . . Average 317 | . 54 289 450 529 337 317 . . . . 96 . . . . Maximum Alert Level 3 | . . 3 2 3 1 2 . . . . 1 . . . . Low Security (%) 35 | 100 100 40 . . . 25 . . . . 86 . . . . Level 1 28 | . . 32 21 41 100 48 . . . . 13 . . . . Level 2 29 | . . 21 78 28 . 25 . . . . . . . . . Level 3 6 | . . 5 . 30 . . . . . . . . . . . Level 4 . | . . . . . . . . . . . . . . . . Level 5 . | . . . . . . . . . . . . . . . . High Security . | . . . . . . . . . . . . . . . . Max Security . | . . . . . . . . . . . . . . . . Squads Dispatched 52 | . . 8 3 17 . 15 . . . . 9 . . . . Investigation 40 | . . 4 1 14 . 13 . . . . 8 . . . . Extermination 4 | . . . . 2 . 1 . . . . 1 . . . . Reinforcement 7 | . . 4 1 1 . 1 . . . . . . . . . Assault . | . . . . . . . . . . . . . . . . Garrison 1 | . . . 1 . . . . . . . . . . . . Intercept . | . . . . . . . . . . . . . . . . Searches Triggered 3 | . . . . 2 . 1 . . . . . . . . . Construction Impeded 1 | . . . 1 . . . . . . . . . . . . Haulers Reinforced 1 | . . . . . . 1 . . . . . . . . . Active Scanning Responses . | . . . . . . . . . . . . . . . . Cargo Convoy Interrupts . | . . . . . . . . . . . . . . . . Stealth | -11 -10 -9 -8 -7 -7 -7 -7 -7 -7 -6 -6 -6 -6 -6 -5 --------- Run | Yrd Mat Mat Mat Fac Was Fac Low Low Zio Pro Fac Low Low Dat Pro Distress Signals 14 | . . 4 3 4 . 1 . . . . 2 . . . . Communications Jammed . | . . . . . . . . . . . . . . . . Distress Signals . | . . . . . . . . . . . . . . . . Times Spotted 287 | . 13 58 35 78 5 32 . 3 . 4 20 5 13 4 17 Peak Tracking Total 14 | . 3 7 6 14 5 9 . 3 . 4 8 4 9 4 12 Tactical Retreats 54 | . . 1 . 28 . 12 . 1 . 1 4 1 2 . 4 Traps | -11 -10 -9 -8 -7 -7 -7 -7 -7 -7 -6 -6 -6 -6 -6 -5 ------- Run | Yrd Mat Mat Mat Fac Was Fac Low Low Zio Pro Fac Low Low Dat Pro Traps Triggered 8 | . . 3 1 2 . 2 . . . . . . . . . Indirectly . | . . . . . . . . . . . . . . . . Trap Hack Attempts . | . . . . . . . . . . . . . . . . Triggered . | . . . . . . . . . . . . . . . . Disarmed 12 | . . . . . . 6 . . . . 6 . . . . Reprogrammed . | . . . . . . . . . . . . . . . . Reused . | . . . . . . . . . . . . . . . . Traps Extracted . | . . . . . . . . . . . . . . . . Installed . | . . . . . . . . . . . . . . . . Triggered 5 | . . . . . . . 1 1 . 1 . 2 . . . Most Traps Carried 5 | . . . . . . . 1 . . . . 5 . . . Machines | -11 -10 -9 -8 -7 -7 -7 -7 -7 -7 -6 -6 -6 -6 -6 -5 ---------- Run | Yrd Mat Mat Mat Fac Was Fac Low Low Zio Pro Fac Low Low Dat Pro Machines Disabled 12 | . . 2 2 4 . 1 . . . 1 . 1 . 1 . Max in Single Turn 4 | . . 1 1 4 . 1 . . . 1 . 1 . 1 . Garrison Access 4 | . . . 1 1 . . . . . . 2 . . . . Machines Repaired . | . . . . . . . . . . . . . . . . Machines Dismantled . | . . . . . . . . . . . . . . . . Machines Sabotaged . | . . . . . . . . . . . . . . . . Overloaded Fab Kills . | . . . . . . . . . . . . . . . . Hacking | -11 -10 -9 -8 -7 -7 -7 -7 -7 -7 -6 -6 -6 -6 -6 -5 --------- Run | Yrd Mat Mat Mat Fac Was Fac Low Low Zio Pro Fac Low Low Dat Pro Machines Accessed 108 | . 8 8 9 30 . 26 . . . . 23 . . 4 . Terminals 53 | . 5 6 5 13 . 13 . . . . 11 . . . . Fabricators 13 | . . . . 5 . 4 . . . . 4 . . . . Repair Stations 15 | . 1 1 1 5 . 4 . . . . 3 . . . . Recycling Units 15 | . 2 . 2 5 . 3 . . . . 3 . . . . Scanalyzers 3 | . . 1 . 1 . 1 . . . . . . . . . Garrison Access 5 | . . . 1 1 . 1 . . . . 2 . . . . Total Hacks 374 | . 25 25 33 95 . 78 . . . . 102 . . 16 . Successful 232 | . 13 11 19 62 . 40 . . . . 71 . . 16 . Failed 141 | . 12 14 13 33 . 38 . . . . 31 . . . . Catastrophic 15 | . 1 2 2 2 . 4 . . . . 4 . . . . Database Lockouts 1 | . . . 1 . . . . . . . . . . . . Manual 163 | . 12 17 24 27 . 28 . . 1 1 53 . . . . Terminals 204 | . 17 20 22 38 . 43 . . . . 64 . . . . Fabricators 41 | . . . . 16 . 11 . . . . 14 . . . . Repair Stations 54 | . 4 3 3 24 . 12 . . . . 8 . . . . Recycling Units 43 | . 4 . 7 13 . 7 . . . . 12 . . . . Scanalyzers 8 | . . 2 . 3 . 3 . . . . . . . . . Garrison Access 8 | . . . 1 1 . 2 . . . . 4 . . . . Terminal Hacks 105 | . 8 5 7 12 . 21 . . . . 36 . . 16 . Record 11 | . . . . . . . . . . . . . . 11 . Part Schematic 19 | . 1 1 3 2 . 4 . . . . 7 . . 1 . Robot Schematic 1 | . . . . . . . . . . . . . . 1 . Robot Analysis 10 | . . . . . . 1 . . . . 9 . . . . Prototype ID Bank 10 | . . 2 1 . . 2 . . . . 2 . . 3 . Branch Access Points 4 | . 1 . . . . 1 . . . . 2 . . . . Machine Index 1 | . . . . . . . . . . . 1 . . . . Terminal Index 5 | . . 1 1 1 . 1 . . . . 1 . . . . Fabricator Index 3 | . . . . 1 . 1 . . . . 1 . . . . Repair Station Index 1 | . . . . . . 1 . . . . . . . . . Garrison Index 1 | . . . . . . . . . . . 1 . . . . Alert Level 8 | . 2 . . 3 . 2 . . . . 1 . . . . Unreport Threat 7 | . . . 1 1 . 3 . . . . 2 . . . . Locate Traps 4 | . 1 . . . . 1 . . . . 2 . . . . Disarm Traps 2 | . . . . . . 1 . . . . 1 . . . . Dispatch Records 1 | . . . . . . . . . . . 1 . . . . Recall Investigation 2 | . . . . 1 . . . . . . 1 . . . . Recall Extermination 2 | . . . . 1 . 1 . . . . . . . . . Hauler Manifests 8 | . 1 1 1 1 . 2 . . . . 2 . . . . Registered Components 2 | . 1 . . . . . . . . . 1 . . . . Registered Prototypes 2 | . . . . 1 . . . . . . 1 . . . . Zone Layout 1 | . 1 . . . . . . . . . . . . . . Fabricator Hacks 25 | . . . . 11 . 5 . . . . 9 . . . . Network Status 1 | . . . . 1 . . . . . . . . . . . Load Schematic 13 | . . . . 5 . 3 . . . . 5 . . . . Build 11 | . . . . 5 . 2 . . . . 4 . . . . Repair Station Hacks 39 | . 2 2 2 22 . 6 . . . . 5 . . . . Scan Component 16 | . 1 . 1 10 . 2 . . . . 2 . . . . Repair 15 | . 1 . 1 9 . 2 . . . . 2 . . . . Refit 8 | . . 2 . 3 . 2 . . . . 1 . . . . Recycling Unit Hacks 13 | . 1 . 3 3 . 3 . . . . 3 . . . . Retrieve Components 13 | . 1 . 3 3 . 3 . . . . 3 . . . . Scanalyzer 6 | . . 1 . 3 . 2 . . . . . . . . . Insert Component 4 | . . 1 . 2 . 1 . . . . . . . . . Analyze 2 | . . . . 1 . 1 . . . . . . . . . Garrison Access Hacks 4 | . . . 1 1 . . . . . . 2 . . . . Seal Access 4 | . . . 1 1 . . . . . . 2 . . . . Unauthorized Hacks 40 | . 2 3 6 10 . 3 . . . . 16 . . . . Terminals 20 | . 2 3 3 5 . 2 . . . . 5 . . . . Assimilate 5 | . . . . 3 . . . . . . 2 . . . . Botnet 12 | . 2 2 2 2 . 2 . . . . 2 . . . . Operators 3 | . . 1 1 . . . . . . . 1 . . . . Fabricators 7 | . . . . 2 . 1 . . . . 4 . . . . Prioritize 6 | . . . . 2 . 1 . . . . 3 . . . . Recompile 1 | . . . . . . . . . . . 1 . . . . Repair Stations . | . . . . . . . . . . . . . . . . Recycling Units 13 | . . . 3 3 . . . . . . 7 . . . . Reject 5 | . . . 1 1 . . . . . . 3 . . . . Recyclers 5 | . . . 2 1 . . . . . . 2 . . . . Mask 3 | . . . . 1 . . . . . . 2 . . . . Scanalyzers . | . . . . . . . . . . . . . . . . Garrison Access . | . . . . . . . . . . . . . . . . Data Cores Recovered 1 | . . . . 1 . . . . . . . . . . . Used . | . . . . . . . . . . . . . . . . Hacking Detections 93 | . 8 8 6 27 . 25 . . . . 19 . . . . Full Trace Events 37 | . . 2 1 14 . 13 . . . . 7 . . . . Feedback Events 2 | . . . . 2 . . . . . . . . . . . Corruption 2 | . . . . 2 . . . . . . . . . . . Feedback Blocked . | . . . . . . . . . . . . . . . . Robot Schematics Acquired 1 | . . . . . . . . . . . . . . 1 . Robots Built . | . . . . . . . . . . . . . . . . Authchips . | . . . . . . . . . . . . . . . . Time . | . . . . . . . . . . . . . . . . Total Robot Build Rating . | . . . . . . . . . . . . . . . . Part Schematics Acquired 21 | . 1 1 3 3 . 5 . . . . 7 . . 1 . Parts Built 13 | . . . . 7 . 2 . . . . 4 . . . . Authchips 1 | . . . . . . . . . . . 1 . . . . Time 563 | . . . . 300 . 67 . . . . 196 . . . . Total Part Build Rating 44 | . . . . 21 . 6 . . . . 17 . . . . Parts Repaired 14 | . 1 . . 9 . 2 . . . . 2 . . . . Time 570 | . 38 . 26 388 . 64 . . . . 54 . . . . Parts Recycled . | . . . . . . . . . . . . . . . . Recycled Matter . | . . . . . . . . . . . . . . . . Retrieved Matter . | . . . . . . . . . . . . . . . . Retrieved Components 30 | . 9 . . 7 . 9 . . . . 5 . . . . Parts Scanalyzed 2 | . . . . 1 . 1 . . . . . . . . . Part Schematics Acquired 2 | . . . . 1 . 1 . . . . . . . . . Parts Damaged . | . . . . . . . . . . . . . . . . Bothacking | -11 -10 -9 -8 -7 -7 -7 -7 -7 -7 -6 -6 -6 -6 -6 -5 ------------ Run | Yrd Mat Mat Mat Fac Was Fac Low Low Zio Pro Fac Low Low Dat Pro Used RIF Installer . | . . . . . . . . . . . . . . . . Robots Hacked . | . . . . . . . . . . . . . . . . Non-combat . | . . . . . . . . . . . . . . . . Combat . | . . . . . . . . . . . . . . . . Robot Hacks Applied . | . . . . . . . . . . . . . . . . Relay Couplers Released . | . . . . . . . . . . . . . . . . Fabnet Peak Effective % . | . . . . . . . . . . . . . . . . Robots Rewired . | . . . . . . . . . . . . . . . . Allies Hacked . | . . . . . . . . . . . . . . . . Hacks Repelled . | . . . . . . . . . . . . . . . . Allies | -11 -10 -9 -8 -7 -7 -7 -7 -7 -7 -6 -6 -6 -6 -6 -5 -------- Run | Yrd Mat Mat Mat Fac Was Fac Low Low Zio Pro Fac Low Low Dat Pro Total Allies 5 | . . . . 3 . . . . . . 2 . . . . Largest Group 2 | . . . . 1 . . . . . . 2 . . . . Highest-Rated Group 36 | . . . . 26 . . . . . . 36 . . . . Highest-Rated Ally 26 | . . . . 26 . . . . . . 26 . . . . Total Orders . | . . . . . . . . . . . . . . . . Ally Attacks . | . . . . . . . . . . . . . . . . Total Damage . | . . . . . . . . . . . . . . . . Kills . | . . . . . . . . . . . . . . . . Allies Corrupted . | . . . . . . . . . . . . . . . . Allies Melted . | . . . . . . . . . . . . . . . . Intel | -11 -10 -9 -8 -7 -7 -7 -7 -7 -7 -6 -6 -6 -6 -6 -5 ------- Run | Yrd Mat Mat Mat Fac Was Fac Low Low Zio Pro Fac Low Low Dat Pro Robot Analysis Total 10 | . . . . . . 1 . . . . 9 . . . . Derelict Logs Recovered 7 | . . . . . . . 1 . 2 1 . 1 . . 2 Drone Launches . | . . . . . . . . . . . . . . . . Drone Recoveries . | . . . . . . . . . . . . . . . . Decoded 0b10 Intel 11 | . . . . . . . . . . . 11 . . . . Emergency Access 1 | . . . . . . . . . . . 1 . . . . Items 9 | . . . . . . . . . . . 9 . . . . Guards 1 | . . . . . . . . . . . 1 . . . . Exploration | -11 -10 -9 -8 -7 -7 -7 -7 -7 -7 -6 -6 -6 -6 -6 -5 ------------- Run | Yrd Mat Mat Mat Fac Was Fac Low Low Zio Pro Fac Low Low Dat Pro Turns Passed 9285 | 86 766 2231 1505 1353 42 909 250 132 288 114 903 165 173 99 269 Spaces Moved 12140 | 49 403 939 794 2591 115 1651 671 357 934 386 1786 510 386 122 446 Core 165 | 3 . 1 . 9 . . . . . . . . . . 152 Treads 1998 | 46 403 938 611 . . . . . . . . . . . . Legs . | . . . . . . . . . . . . . . . . Wheels . | . . . . . . . . . . . . . . . . Hover . | . . . . . . . . . . . . . . . . Flight 9977 | . . . 183 2582 115 1651 671 357 934 386 1786 510 386 122 294 Fastest Speed 23 | 50 160 160 31 28 28 26 26 26 26 23 26 26 26 27 29 Average Speed 50 | 153 160 162 133 31 28 28 26 26 26 25 26 27 26 28 38 Slowest Speed 550 | 160 160 550 240 250 32 30 26 26 26 26 26 92 97 95 200 Overloaded Moves 27 | . . . . . . . . . . 27 . . . . . Propulsion Burnouts . | . . . . . . . . . . . . . . . . Robots Hopped 41 | . . . . 25 2 11 . . . . 3 . . . . Cave-ins Triggered 1 | . . . . . . . . . . . 1 . . . . Exploration Rate (%) 60 | 4 53 76 43 55 90 50 75 54 84 62 46 66 57 82 63 Regions Visited 15 Branch Regions 8 Pre-discovered Areas 5 | . . . . . . . . . 4 . . . . 1 . Known Exits Taken 10 | . . 1 . . . 1 1 1 1 1 1 1 1 1 . Unknown Exits Taken 3 | 1 1 . 1 . . . . . . . . . . . . Scrap Searched 15 | . . . . . . . 3 2 2 1 . 2 4 . 1 Spaces Dug 125 | . . . . 42 . 26 . 11 . 1 33 . 11 1 . Terrain Destroyed 295 | . . . 32 115 4 38 . 11 . 1 33 . 11 1 49 Melee 110 | . . . . 36 . 26 . 2 . 1 33 . 11 1 . Projectile 4 | . . . 4 . . . . . . . . . . . . AOE 181 | . . . 28 79 4 12 . 9 . . . . . . 49 Terrain Rammed . | . . . . . . . . . . . . . . . . Walls Destroyed . | . . . . . . . . . . . . . . . . Machines Disabled . | . . . . . . . . . . . . . . . . Actions | -11 -10 -9 -8 -7 -7 -7 -7 -7 -7 -6 -6 -6 -6 -6 -5 --------- Run | Yrd Mat Mat Mat Fac Was Fac Low Low Zio Pro Fac Low Low Dat Pro Total 14364 | 57 490 1309 1063 2995 120 2020 737 392 974 394 2167 527 418 163 538 Wait 1161 | . 43 90 66 240 3 245 49 32 3 . 286 1 . 20 83 Move 12048 | 48 402 938 793 2544 111 1628 670 356 933 385 1779 509 385 121 446 Hop 37 | . . . . 22 1 11 . . . . 3 . . . . Pick Up 102 | 1 11 17 18 24 1 13 3 . 2 . 8 3 1 . . Fast Attach 105 | 7 2 32 18 11 1 8 1 . 14 2 7 . 2 . . Attach 48 | . . 5 10 15 2 4 1 1 . . 4 . 3 . 3 Detach 24 | 1 1 2 1 9 . 3 . . 2 . 3 1 . . 1 Swap 120 | . 4 11 15 27 1 18 6 . 8 . 20 8 2 . . Drop 154 | . 6 37 38 24 . 17 3 . 12 2 10 2 2 . 1 Fire 304 | . 20 173 98 9 . . . . . . . . . . 4 Melee 224 | . . . 6 70 . 41 4 3 . 5 47 3 23 22 . Ram . | . . . . . . . . . . . . . . . . Kick . | . . . . . . . . . . . . . . . . Crush 5 | . 1 4 . . . . . . . . . . . . . Escape Stasis 32 | . . . . . . 32 . . . . . . . . . Rewire . | . . . . . . . . . . . . . . . . Trap . | . . . . . . . . . . . . . . . . Miscellaneous . | . . . . . . . . . . . . . . . . Route ------- -11/Scrapyard -10/Materials (discovered 4 exits: *Mat x2 / Min x2) -9/Materials (discovered 6 exits: *Mat x2 / [*Min x2] / *Sto x2) -8/Materials (discovered 2 exits: *Fac x2) -7/Factory (discovered 4 exits: *Fac x2 / *Low x2) -7/Waste -7/Factory (discovered 4 exits: *Fac x2 / *Low x2) -7/Lower Caves -7/Lower Caves (discovered 2 exits: *Fac / *Zio) -7/Zion -6/Proximity Caves -6/Factory (discovered 5 exits: *Fac x3 / *Low x2) -6/Lower Caves -6/Lower Caves (discovered 2 exits: *Fac / *Dat) -6/Data Miner -5/Proximity Caves History --------- Turn | Location | Event 2 | -11/Scrapyard | Met Revision 17 11 | -11/Scrapyard | Discovered new exit (range 16) 87 | -11/Scrapyard | Entered Materials 304 | -10/Materials | Discovered new exit (range 12) 312 | -10/Materials | Build established: Mutant 459 | -10/Materials | Identified exit to Mines 758 | -10/Materials | Repaired Machine Analyzer 792 | -10/Materials | Discovered new exit (range 11) 853 | -10/Materials | Entered another Materials area 853 | -9/Materials | Evolved 2 slots: Propulsion x1, Utility x1 1097 | -9/Materials | Lost 3 parts (1u2w) 1379 | -9/Materials | Build established: Scavenger-Mutant 1490 | -9/Materials | Discovered new exit (range 12) 1731 | -9/Materials | Identified exit to Storage 1841 | -9/Materials | Discovered new exit (range 9) 1997 | -9/Materials | Discovered new exit (range 4) 2001 | -9/Materials | Identified exit to Materials 2035 | -9/Materials | Core integrity fell below 50% 2312 | -9/Materials | Discovered exit to Storage (range 6) 2457 | -9/Materials | Discovered new exit (range 5) 2521 | -9/Materials | Build established: Mutant 2521 | -9/Materials | Core integrity fell below 20% 3036 | -9/Materials | Discovered exit to Materials (range 15) 3084 | -9/Materials | Entered another Materials area 3084 | -8/Materials | Evolved 2 slots: Propulsion x1, Utility x1 3241 | -8/Materials | Garrison activated, responded to threat 3414 | -8/Materials | Central database locked down 3601 | -8/Materials | Discovered new exit (range 5) 3636 | -8/Materials | Build established: Scavenger-Mutant 4057 | -8/Materials | Core integrity fell below 50% 4101 | -8/Materials | Lost 6 parts (1p3n1u1w) 4533 | -8/Materials | Discovered new exit (range 13) 4589 | -8/Materials | Entered Factory 4589 | -7/Factory | Evolved 2 slots: Utility x2 4632 | -7/Factory | Discovered new exit (range 7) 4652 | -7/Factory | Identified exit to Lower Caves 4667 | -7/Factory | Fabricated Imp. Propulsion Shielding (x2) 4686 | -7/Factory | Repaired Mni. Grenade Launcher? 4712 | -7/Factory | Fabricated Imp. Utility Shielding (x2) 4876 | -7/Factory | Discovered exit to Lower Caves (range 13) 4918 | -7/Factory | Build established: Hacker-Sprinter 5103 | -7/Factory | Discovered new exit (range 9) 5135 | -7/Factory | Repaired Lgt. Nuclear Core? 5142 | -7/Factory | Repaired Imp. Flight Unit? 5184 | -7/Factory | Fabricated Imp. VTOL Module? 5194 | -7/Factory | Repaired System Restoration Module? 5271 | -7/Factory | Fabricated Imp. VTOL Module? 5389 | -7/Factory | Search patrols dispatched 5481 | -7/Factory | Repaired Imp. Propulsion Shielding? 5514 | -7/Factory | Repaired Broken Imp. Flight Unit 5568 | -7/Factory | Repaired Imp. Flight Unit? 5649 | -7/Factory | Repaired Mni. Grenade Launcher 5676 | -7/Factory | Discovered new exit (range 16) 5688 | -7/Factory | Repaired Lgt. Nuclear Core? 5789 | -7/Factory | Search patrols dispatched 5908 | -7/Factory | Fabricated Imp. VTOL Module? 5942 | -7/Factory | Manually triggered Chute Trap 5942 | -7/Factory | Sucked down chute 5942 | -7/Factory | Entered Waste 5949 | -7/Waste | Spotted C-40 Crusher 5954 | -7/Waste | Spotted C-40 Crusher 5957 | -7/Waste | EMP discharged 5957 | -7/Waste | System corruption reached 10% 5964 | -7/Waste | Spotted C-40 Crusher 5964 | -7/Waste | Spotted C-40 Crusher 5965 | -7/Waste | Spotted C-40 Crusher 5974 | -7/Waste | Crushed by Compactor (1 part destroyed, 1 dropped) 5980 | -7/Waste | Spotted C-40 Crusher 5981 | -7/Waste | Discovered new exit (range 12) 5984 | -7/Waste | Identified exit to Factory 5984 | -7/Waste | Entered Factory 6094 | -7/Factory | Repaired Imp. Flight Unit? 6104 | -7/Factory | Repaired Broken Field Propulsion Drive? 6274 | -7/Factory | Discovered new exit (range 9) 6304 | -7/Factory | Core integrity fell below 50% 6384 | -7/Factory | Search patrols dispatched 6473 | -7/Factory | Fabricated Imp. VTOL Module (x1) 6593 | -7/Factory | Fabricated Imp. VTOL Module? 6862 | -7/Factory | Discovered new exit (range 5) 6865 | -7/Factory | Identified exit to Factory 6893 | -7/Factory | Entered Lower Caves 6919 | -7/Lower Caves | Learned location of 1 exit from Proximity Caves 7110 | -7/Lower Caves | Discovered new exit (range 15) 7111 | -7/Lower Caves | Encountered a Warlord checkpoint 7114 | -7/Lower Caves | Identified exit to Lower Caves 7143 | -7/Lower Caves | Entered another Lower Caves area 7143 | -7/Lower Caves | Discovered exit to Factory (range 8) 7269 | -7/Lower Caves | Encountered a Warlord checkpoint 7274 | -7/Lower Caves | Discovered new exit (range 5) 7275 | -7/Lower Caves | Identified exit to Zion 7275 | -7/Lower Caves | Entered Zion 7285 | -7/Zion | Received a hallucinogenic algorithm 7287 | -7/Zion | Found CR-A16's Pointy Stick 7304 | -7/Zion | Discovered new exit (range 15) 7308 | -7/Zion | Identified exit to Proximity Caves 7314 | -7/Zion | Learned location of Warlord (-5) 7323 | -7/Zion | System corruption cleaned by Quarantine Array 7380 | -7/Zion | Found Prototype Device 7380 | -7/Zion | Identified Bomb Factory No. 2 7402 | -7/Zion | Acquired unknown access codes intercepted by a Zionite 7420 | -7/Zion | Visited the Megawrench Repair Shop 7425 | -7/Zion | Megawrench repaired 9 parts 7449 | -7/Zion | Given the Hacking Drone Bay 7450 | -7/Zion | Found Prototype Device 7450 | -7/Zion | Identified Hacking Drone Bay 7470 | -7/Zion | Learned location of Armory (-3) 7476 | -7/Zion | Found Prototype Processor 7476 | -7/Zion | Identified Exp. Targeting Computer 7478 | -7/Zion | Found Prototype Processor 7478 | -7/Zion | Identified Spectral Analyzer 7484 | -7/Zion | Found Prototype Processor 7484 | -7/Zion | Identified Exp. Terrain Scan Processor 7487 | -7/Zion | Found Prototype Processor 7487 | -7/Zion | Identified Exp. Core Analyzer 7563 | -7/Zion | Entered Proximity Caves 7565 | -6/Proximity Caves | Acquired the password to a Derelict Tinkerer's latest research 7568 | -6/Proximity Caves | Found Prototype Special Weapon 7568 | -6/Proximity Caves | Identified Molecular Deconstructor 7611 | -6/Proximity Caves | Spotted B-75 Beast 7634 | -6/Proximity Caves | Caught by Unaware searching for contraband prototypes 7665 | -6/Proximity Caves | Learned 8 Factory zone layouts 7677 | -6/Proximity Caves | Entered Factory 7677 | -6/Factory | Evolved 2 slots: Utility x2 7678 | -6/Factory | Identified exit to Lower Caves 7679 | -6/Factory | Identified exit to Factory 7836 | -6/Factory | Found Prototype Launcher 7836 | -6/Factory | Identified Scatter Rocket Array 7878 | -6/Factory | Repaired Cld. VTOL Module 7941 | -6/Factory | Discovered exit to Factory (range 11) 7978 | -6/Factory | Build established: Hacker-Scout 8033 | -6/Factory | Discovered exit to Factory (range 22) 8192 | -6/Factory | Fabricated Imp. Hacking Suite (x1) 8241 | -6/Factory | Fabricated Imp. Hacking Suite (x1) 8298 | -6/Factory | Fabricated Imp. Hacking Suite (x1) 8362 | -6/Factory | Fabricated Mni. Grenade Launcher (x1) 8480 | -6/Factory | Crushed by falling debris 8503 | -6/Factory | Repaired Imp. Utility Shielding 8524 | -6/Factory | Spotted B-75 Beast 8580 | -6/Factory | Entered Lower Caves 8689 | -6/Lower Caves | Attacked by a delusional Derelict stockpiling parts 8711 | -6/Lower Caves | Learned Factory terminal intel 8742 | -6/Lower Caves | Discovered new exit (range 11) 8744 | -6/Lower Caves | Identified exit to Lower Caves 8745 | -6/Lower Caves | Entered another Lower Caves area 8746 | -6/Lower Caves | Encountered a Warlord checkpoint 8768 | -6/Lower Caves | Discovered exit to Factory (range 8) 8771 | -6/Lower Caves | Spotted B-75 Beast 8867 | -6/Lower Caves | Lost 4 parts (2n1u1w) 8910 | -6/Lower Caves | Discovered new exit (range 15) 8913 | -6/Lower Caves | Identified exit to Data Miner 8918 | -6/Lower Caves | Entered Data Miner 8918 | -6/Data Miner | Discovered new exit (range 6) 8922 | -6/Data Miner | Met Data Miner 8929 | -6/Data Miner | Learned location of Section 7 (-2) 8929 | -6/Data Miner | Acquired the access code to Warlord's prototype stash 8934 | -6/Data Miner | Received God Mode back door access code from Data Miner 8941 | -6/Data Miner | Data Conduit disabled 9009 | -6/Data Miner | Core integrity fell below 50% 9017 | -6/Data Miner | Identified exit to Proximity Caves 9017 | -6/Data Miner | Entered Proximity Caves 9214 | -5/Proximity Caves | Core integrity fell below 20% 9235 | -5/Proximity Caves | Lost 8 parts (1p3n3u1w) 9282 | -5/Proximity Caves | Attracted the attention of an 0b10 checkpoint 9286 | -5/Proximity Caves | Destroyed by G-50 Soldier with Heavy Laser Last Messages --------------- S-27 Virus destroyed. The unstable cave ceiling collapses. Adv. Sensor Array destroyed. Backup Power III destroyed. Imp. VTOL Module destroyed. Autogun fries itself beyond repair. Cld. VTOL Module destroyed. Acquired 8 matter. The unstable cave ceiling collapses. Mni. Grenade Launcher destroyed. Destroyed Mni. Grenade Launcher. Destroyed VTOL Module. Adv. System Shield destroyed. Lgt. Nuclear Core fries itself beyond repair. Dropped Med. Storage Unit. Acquired 9 matter. Acquired 3 matter. Y-64 Sentinel: "INTERCEPTING UNREGISTERED DERELICT." Penetrated by Slug. Map ----- +----------------------------------------------------+ | ?????????????????????????????????????????????????? | | ?????????????????????????????????????????????????? | | ?????????????????????????????????????????????????? | | ?????????????????????????????????????????????????? | | ?????????????????????????????????????????????????? | | ?????????????????????????????????????????????????? | | ?????????????????????????????????????????????????? | | ?????????????????????????????????????????????????? | | ?????????????? ??????????????????????????????????? | | ?????????????? ???????????##????????????????????? | | ??????????????? ?????????# ##???????????????????? | | ???????????????# ????????? ##??????????????????? | | ???????????????# ???????? ##?????????????????? | | ???????????????# #??????# #?????????????????? | | ??????????????## #????# ?????????????????? | | ??????????????# #??? ??????????????????? | | ??????????????? ??? #??????????????????? | | ???????????????? ?? ##?????????????????? | | #???????????????? ?? ??????????????????? | | ###???????????????# #?# ???????????????????? | | #??????????????## ## ????????????????????? | | ######?????????# ?????????????????????? | | ## #??????????? #?????????????????????? | | #????????????? #?????????????????????? | | #?####?????????# ##????????????????????? | | ### ##????###### @ ##???????????????????? | | ##???# #???????? ??????????? | | #???# ##??? #????????? | | ## ##??# ## #??????? | | ### #??# g #??????? | | #?#### #?##g Y #??????? | | #????## ### ## ###???????? | | ????### ##?## ##?????????? | | ????# #???? #??????????? | | ????# ## ##????? #??????????? | | ????## ### ###?###???## #??????????? | | ?????#### #?###??## #?????? #?????????? | | ??####### ##??##### #??????? ????????? | | ### ########## #???????? ????????? | | # ##????## ##???????? ????????? | | # ### ##?????# #??????????????????? | | ######??????# #??????????????????? | | ## #????????????# #??????????????????? | | ?## ##???????????# ####???????????????? | | ??## #???????????## ##??????????????? | | #### #????????????# ##?????????????? | | ## #????????????# ## #?????????????? | | # ##????????????# ### ## ##????????????? | | # #####?????##### #?# ## ##???????????? | | ## ##???## # ### ## #???????????? | +----------------------------------------------------+ Best States ------------- Heat Dissipation 50 Energy Generation 17 Energy Capacity 300 Matter Stores 300 Matter Capacity 300 Sight Range 24 Robot Scan Range 16 Terrain Scan Density 10 ECM Strength 1 Armor Coverage 300 Propulsion Shielding 66 Utility Shielding 66 Evasion (%) 64 Targeting Accuracy 6 Recoil Reduction 4 Offensive Hacking 40 Defensive Hacking 26 Authchip Count 1 Trap Extractor Capacity 6 Item Schematics ----------------- ECM Suite | -10/Materials | Hacked Mni. Grenade Launcher | -9/Materials | Hacked Scythe | -8/Materials | Hacked Imp. Utility Shielding | -8/Materials | Hacked Imp. Propulsion Shielding | -8/Materials | Hacked Imp. VTOL Module | -7/Factory | Hacked Hacking Suite | -7/Factory | Hacked Imp. Light Armor Plating | -7/Factory | Scanalyzed Adv. System Shield | -7/Factory | Hacked Adv. Sensor Array | -7/Factory | Hacked Machine Analyzer | -7/Factory | Scanalyzed Cld. VTOL Module | -7/Factory | Hacked Imp. Hacking Suite | -7/Factory | Hacked Stasis Canceller | -6/Factory | Hacked Enh. Optical Array | -6/Factory | Hacked Transmission Jammer | -6/Factory | Hacked Adv. Signal Interpreter | -6/Factory | Hacked Lgt. Fission Core | -6/Factory | Hacked Adv. Weight Redist. System | -6/Factory | Hacked Hyp. Mass Driver | -6/Factory | Hacked Adv. Recalibrator | -6/Data Miner | Free Robot Schematics ------------------ M-36 Artificer | -6/Data Miner | Free Fabricated ------------ Imp. Propulsion Shielding | x2 | -7/Factory Imp. Utility Shielding | x2 | -7/Factory Imp. VTOL Module | x1 | -7/Factory Imp. VTOL Module | x1 | -7/Factory Imp. VTOL Module | x1 | -7/Factory Imp. VTOL Module | x1 | -7/Factory Imp. VTOL Module | x1 | -7/Factory Imp. Hacking Suite | x1 | -6/Factory | Authchip Imp. Hacking Suite | x1 | -6/Factory Imp. Hacking Suite | x1 | -6/Factory Mni. Grenade Launcher | x1 | -6/Factory Alien Tech Used ----------------- None Achievements -------------- None Challenges ------------ None Game ------ Seed BombEtherialGravjet Manual? 0 Play Time 02:58:46 Cumulative 213.2 hours Start 2024.06.27 @ 18:31:20 End 2024.06.27 @ 23:58:46 Sessions 3 Manual Loads 0 Difficulty Rogue Special Mode None Game No. 219 Rogue 219 Adventurer 0 Explorer 0 Win Type - Total 15 Types 14/0/0/1/0/0/0/0/0 Lore% 73 Gallery% 83 Achievement% 79 Wizard Run 0 Options --------- Layout 1 ASCII 0 Keyboard 0 Movement Numpad Keybinds 0 Fullscreen 1 Font 24/Smallcaps Map View 50x35 Zoom Use 0% Tactical HUD 1 Map Filters NONE Filters NONE Steam 1 RUN: 29bb28ba-799a-4194-a2b6-8922965e7720